Workbook

Sheet Sheet1
A1: Rev 1
A2: Known points | F2: Interpolated points
A3: a | B3: Cl | F3: alfa | G3: CL | H3: CD | I3: CM
A4: -180 | B4: 0 | F4: -180 | G4: =cubspline(3,F4,$A$4:$A$14,$B$4:$B$14) -> -3.552713679e-15 | H4: =cubspline(3,F4,$A$18:$A$28,$B$18:$B$28) -> 4.440892099e-16 | I4: =cubspline(3,F4,$A$34:$A$44,$B$34:$B$44) -> 0
A5: -130 | B5: 1.2 | F5: =F4+1 -> -179 | G5: =cubspline(3,F5,$A$4:$A$14,$B$4:$B$14) -> 0.0359952 | H5: =cubspline(3,F5,$A$18:$A$28,$B$18:$B$28) -> 0.008478869565 | I5: =cubspline(3,F5,$A$34:$A$44,$B$34:$B$44) -> 0.004999794239
A6: -45 | B6: -1.2 | F6: =F5+1 -> -178 | G6: 0.0719616 | H6: 0.0169613913 | I6: 0.009998353909
A7: -38 | B7: -1.25 | F7: -177 | G7: 0.1078704 | H7: 0.02545121739 | I7: 0.01499444444
A8: -30 | B8: -1.2 | F8: -176 | G8: 0.1436928 | H8: 0.033952 | I8: 0.01998683128
A9: 15 | B9: 0.8 | F9: -175 | G9: 0.1794 | H9: 0.0424673913 | I9: 0.02497427984
A10: 40 | B10: 1.5 | F10: -174 | G10: 0.2149632 | H10: 0.05100104348 | I10: 0.02995555556
A11: 50 | B11: 1.55 | F11: -173 | G11: 0.2503536 | H11: 0.0595566087 | I11: 0.03492942387
A12: 70 | B12: 1.2 | F12: -172 | G12: 0.2855424 | H12: 0.06813773913 | I12: 0.03989465021
A13: 130 | B13: -1.2 | F13: -171 | G13: 0.3205008 | H13: 0.07674808696 | I13: 0.04485
A14: 180 | B14: 0 | F14: -170 | G14: 0.3552 | H14: 0.08539130435 | I14: 0.04979423868
F15: -169 | G15: 0.3896112 | H15: 0.09407104348 | I15: 0.05472613169
F16: -168 | G16: 0.4237056 | H16: 0.1027909565 | I16: 0.05964444444
A17: a | B17: CD | F17: -167 | G17: 0.4574544 | H17: 0.1115546957 | I17: 0.06454794239
A18: -180 | B18: 0 | F18: -166 | G18: 0.4908288 | H18: 0.120365913 | I18: 0.06943539095
A19: -130 | B19: 0.5 | F19: -165 | G19: 0.5238 | H19: 0.1292282609 | I19: 0.07430555556
A20: -90 | B20: 1.25 | F20: -164 | G20: 0.5563392 | H20: 0.1381453913 | I20: 0.07915720165
A21: -30 | B21: 0.2 | F21: -163 | G21: 0.5884176 | H21: 0.1471209565 | I21: 0.08398909465
A22: -10 | B22: 0.015 | F22: -162 | G22: 0.6200064 | H22: 0.1561586087 | I22: 0.0888
A23: 0 | B23: 0.01 | F23: -161 | G23: 0.6510768 | H23: 0.165262 | I23: 0.09358868313
A24: 10 | B24: 0.015 | F24: -160 | G24: 0.6816 | H24: 0.1744347826 | I24: 0.09835390947
A25: 30 | B25: 0.2 | F25: -159 | G25: 0.7115472 | H25: 0.1836806087 | I25: 0.1030944444
A26: 90 | B26: 1.25 | F26: -158 | G26: 0.7408896 | H26: 0.1930031304 | I26: 0.1078090535
A27: 130 | B27: 0.5 | F27: -157 | G27: 0.7695984 | H27: 0.202406 | I27: 0.1124965021
A28: 180 | B28: 0 | F28: -156 | G28: 0.7976448 | H28: 0.2118928696 | I28: 0.1171555556
F29: -155 | G29: 0.825 | H29: 0.2214673913 | I29: 0.1217849794
F30: -154 | G30: 0.8516352 | H30: 0.2311332174 | I30: 0.1263835391
F31: -153 | G31: 0.8775216 | H31: 0.240894 | I31: 0.13095
F32: -152 | G32: 0.9026304 | H32: 0.2507533913 | I32: 0.1354831276
A33: a | B33: Cm | F33: -151 | G33: 0.9269328 | H33: 0.2607150435 | I33: 0.1399816872
A34: -180 | B34: 0 | F34: -150 | G34: 0.9504 | H34: 0.2707826087 | I34: 0.1444444444
A35: -90 | B35: 0.3 | F35: -149 | G35: 0.9730032 | H35: 0.2809597391 | I35: 0.1488701646
A36: -35 | B36: 0 | F36: -148 | G36: 0.9947136 | H36: 0.291250087 | I36: 0.1532576132
A37: -22 | B37: 0 | F37: -147 | G37: 1.0155024 | H37: 0.3016573043 | I37: 0.1576055556
A38: -18 | B38: 0 | F38: -146 | G38: 1.0353408 | H38: 0.3121850435 | I38: 0.1619127572
A39: 0 | B39: 0 | F39: -145 | G39: 1.0542 | H39: 0.3228369565 | I39: 0.1661779835
A40: 18 | B40: 0 | F40: -144 | G40: 1.0720512 | H40: 0.3336166957 | I40: 0.1704
A41: 22 | B41: 0 | F41: -143 | G41: 1.0888656 | H41: 0.344527913 | I41: 0.174577572
A42: 35 | B42: 0 | F42: -142 | G42: 1.1046144 | H42: 0.3555742609 | I42: 0.178709465
A43: 90 | B43: -0.3 | F43: -141 | G43: 1.1192688 | H43: 0.3667593913 | I43: 0.1827944444
A44: 180 | B44: 0 | F44: -140 | G44: 1.1328 | H44: 0.3780869565 | I44: 0.1868312757
F45: -139 | G45: 1.1451792 | H45: 0.3895606087 | I45: 0.1908187243
F46: -138 | G46: 1.1563776 | H46: 0.401184 | I46: 0.1947555556
F47: -137 | G47: 1.1663664 | H47: 0.4129607826 | I47: 0.198640535
F48: -136 | G48: 1.1751168 | H48: 0.4248946087 | I48: 0.202472428
F49: -135 | G49: 1.1826 | H49: 0.4369891304 | I49: 0.20625
F50: -134 | G50: 1.1887872 | H50: 0.449248 | I50: 0.2099720165
F51: -133 | G51: 1.1936496 | H51: 0.4616748696 | I51: 0.2136372428
F52: -132 | G52: 1.1971584 | H52: 0.4742733913 | I52: 0.2172444444
F53: -131 | G53: 1.1992848 | H53: 0.4870472174 | I53: 0.2207923868
F54: -130 | G54: 1.2 | H54: 0.5 | I54: 0.2242798354
F55: -129 | G55: 1.199143833 | H55: 0.513782269 | I55: 0.2277055556
F56: -128 | G56: 1.196600282 | H56: 0.5289809783 | I56: 0.2310683128
F57: -127 | G57: 1.192406776 | H57: 0.5455044158 | I57: 0.2343668724
F58: -126 | G58: 1.186600743 | H58: 0.5632608696 | I58: 0.2376
F59: -125 | G59: 1.179219609 | H59: 0.5821586277 | I59: 0.2407664609
F60: -124 | G60: 1.170300803 | H60: 0.6021059783 | I60: 0.2438650206
F61: -123 | G61: 1.159881752 | H61: 0.6230112092 | I61: 0.2468944444
F62: -122 | G62: 1.147999884 | H62: 0.6447826087 | I62: 0.2498534979
F63: -121 | G63: 1.134692627 | H63: 0.6673284647 | I63: 0.2527409465
F64: -120 | G64: 1.119997409 | H64: 0.6905570652 | I64: 0.2555555556
F65: -119 | G65: 1.103951656 | H65: 0.7143766984 | I65: 0.2582960905
F66: -118 | G66: 1.086592797 | H66: 0.7386956522 | I66: 0.2609613169
F67: -117 | G67: 1.067958259 | H67: 0.7634222147 | I67: 0.26355
F68: -116 | G68: 1.048085471 | H68: 0.7884646739 | I68: 0.2660609053
F69: -115 | G69: =cubspline(3,F69,$A$4:$A$14,$B$4:$B$14) -> 1.027011859 | H69: =cubspline(3,F69,$A$18:$A$28,$B$18:$B$28) -> 0.8137313179 | I69: =cubspline(3,F69,$A$34:$A$44,$B$34:$B$44) -> 0.2684927984
F70: =F69+1 -> -114 | G70: 1.004774852 | H70: 0.8391304348 | I70: 0.2708444444
F71: -113 | G71: 0.9814118765 | H71: 0.8645703125 | I71: 0.2731146091
F72: -112 | G72: 0.956960361 | H72: 0.8899592391 | I72: 0.2753020576
F73: -111 | G73: 0.931457733 | H73: 0.9152055027 | I73: 0.2774055556
F74: -110 | G74: 0.9049414201 | H74: 0.9402173913 | I74: 0.2794238683
F75: -109 | G75: 0.8774488501 | H75: 0.9649031929 | I75: 0.2813557613
F76: -108 | G76: 0.8490174505 | H76: 0.9891711957 | I76: 0.2832
F77: -107 | G77: 0.8196846491 | H77: 1.012929687 | I77: 0.2849553498
F78: -106 | G78: 0.7894878736 | H78: 1.036086957 | I78: 0.2866205761
F79: -105 | G79: 0.7584645516 | H79: 1.058551291 | I79: 0.2881944444
F80: -104 | G80: 0.7266521108 | H80: 1.080230978 | I80: 0.2896757202
F81: -103 | G81: 0.6940879789 | H81: 1.101034307 | I81: 0.2910631687
F82: -102 | G82: 0.6608095836 | H82: 1.120869565 | I82: 0.2923555556
F83: -101 | G83: 0.6268543525 | H83: 1.139645041 | I83: 0.2935516461
F84: -100 | G84: 0.5922597133 | H84: 1.157269022 | I84: 0.2946502058
F85: -99 | G85: 0.5570630937 | H85: 1.173649796 | I85: 0.29565
F86: -98 | G86: 0.5213019215 | H86: 1.188695652 | I86: 0.2965497942
F87: -97 | G87: 0.4850136241 | H87: 1.202314878 | I87: 0.2973483539
F88: -96 | G88: 0.4482356295 | H88: 1.214415761 | I88: 0.2980444444
F89: -95 | G89: 0.4110053651 | H89: 1.22490659 | I89: 0.2986368313
F90: -94 | G90: 0.3733602587 | H90: 1.233695652 | I90: 0.2991242798
F91: -93 | G91: 0.335337738 | H91: 1.240691236 | I91: 0.2995055556
F92: -92 | G92: 0.2969752307 | H92: 1.24580163 | I92: 0.2997794239
F93: -91 | G93: 0.2583101644 | H93: 1.248935122 | I93: 0.2999446502
F94: -90 | G94: 0.2193799668 | H94: 1.25 | I94: 0.3
F95: -89 | G95: 0.1802220656 | H95: 1.249333074 | I95: 0.2997060856
F96: -88 | G96: 0.1408738884 | H96: 1.247357736 | I96: 0.2988387678
F97: -87 | G97: 0.101372863 | H97: 1.24411215 | I97: 0.2974196844
F98: -86 | G98: 0.06175641705 | H98: 1.239634476 | I98: 0.2954704733
F99: -85 | G99: 0.02206197818 | H99: 1.233962876 | I99: 0.2930127724
F100: -84 | G100: -0.0176730259 | H100: 1.227135514 | I100: 0.2900682194
F101: -83 | G101: -0.05741116752 | H101: 1.21919055 | I101: 0.2866584523
F102: -82 | G102: -0.097115019 | H102: 1.210166147 | I102: 0.2828051089
F103: -81 | G103: -0.1367471527 | H103: 1.200100467 | I103: 0.2785298272
F104: -80 | G104: -0.1762701408 | H104: 1.189031672 | I104: 0.2738542449
F105: -79 | G105: -0.2156465558 | H105: =cubspline(3,F105,$A$18:$A$28,$B$18:$B$28) -> 1.176997923 | I105: =cubspline(3,F105,$A$34:$A$44,$B$34:$B$44) -> 0.2688
F106: -78 | G106: -0.25483897 | H106: 1.164037383 | I106: 0.2633887303
F107: -77 | G107: -0.2938099556 | H107: 1.150188214 | I107: 0.2576420736
F108: -76 | G108: -0.3325220849 | H108: 1.135488577 | I108: 0.2515816679
F109: -75 | G109: -0.3709379304 | H109: 1.119976636 | I109: 0.245229151
F110: -74 | G110: -0.4090200644 | H110: 1.10369055 | I110: 0.2386061608
F111: -73 | G111: -0.446731059 | H111: 1.086668484 | I111: 0.2317343351
F112: -72 | G112: -0.4840334868 | H112: 1.068948598 | I112: 0.2246353118
F113: -71 | G113: -0.52088992 | H113: 1.050569055 | I113: 0.2173307288
F114: -70 | G114: -0.5572629308 | H114: 1.031568017 | I114: 0.2098422239
F115: -69 | G115: -0.5931150917 | H115: 1.011983645 | I115: 0.202191435
F116: -68 | G116: -0.628408975 | H116: 0.9918541018 | I116: 0.1944
F117: -67 | G117: -0.6631071529 | H117: 0.9712175493 | I117: 0.1864895567
F118: -66 | G118: -0.6971721979 | H118: 0.9501121495 | I118: 0.1784817431
F119: -65 | G119: -0.7305666821 | H119: 0.9285760644 | I119: 0.1703981968
F120: -64 | G120: -0.763253178 | H120: 0.9066474559 | I120: 0.162260556
F121: -63 | G121: -0.7951942579 | H121: 0.884364486 | I121: 0.1540904583
F122: -62 | G122: -0.8263524941 | H122: 0.8617653167 | I122: 0.1459095417
F123: -61 | G123: -0.8566904588 | H123: 0.8388881101 | I123: 0.137739444
F124: -60 | G124: -0.8861707245 | H124: 0.815771028 | I124: 0.1296018032
F125: -59 | G125: -0.9147558635 | H125: =cubspline(3,F125,$A$18:$A$28,$B$18:$B$28) -> 0.7924522326 | I125: =cubspline(3,F125,$A$34:$A$44,$B$34:$B$44) -> 0.1215182569
F126: -58 | G126: -0.942408448 | H126: 0.7689698858 | I126: 0.1135104433
F127: -57 | G127: -0.9690910504 | H127: 0.7453621495 | I127: 0.1056
F128: -56 | G128: -0.994766243 | H128: 0.7216671859 | I128: 0.09780856499
F129: -55 | G129: -1.019396598 | H129: 0.6979231568 | I129: 0.09015777611
F130: -54 | G130: -1.042944688 | H130: 0.6741682243 | I130: 0.08266927122
F131: -53 | G131: -1.065373085 | H131: 0.6504405504 | I131: 0.0753646882
F132: -52 | G132: -1.086644362 | H132: 0.626778297 | I132: 0.06826566491
F133: -51 | G133: =cubspline(3,F133,$A$4:$A$14,$B$4:$B$14) -> -1.106721091 | H133: 0.6032196262 | I133: 0.06139383922
F134: =F133+1 -> -50 | G134: -1.125565843 | H134: 0.5798026999 | I134: 0.05477084899
F135: -49 | G135: -1.143141192 | H135: 0.5565656802 | I135: 0.04841833208
F136: -48 | G136: -1.15940971 | H136: 0.533546729 | I136: 0.04235792637
F137: -47 | G137: -1.174333969 | H137: 0.5107840083 | I137: 0.03661126972
F138: -46 | G138: -1.187876542 | H138: 0.4883156802 | I138: 0.0312
F139: -45 | G139: -1.2 | H139: 0.4661799065 | I139: 0.02614575507
F140: -44 | G140: -1.211146237 | H140: 0.4444148494 | I140: 0.0214701728
F141: -43 | G141: -1.221546644 | H141: 0.4230586708 | I141: 0.01719489106
F142: -42 | G142: -1.230848043 | H142: 0.4021495327 | I142: 0.01334154771
F143: -41 | G143: -1.238697257 | H143: 0.3817255971 | I143: 0.009931780616
F144: -40 | G144: -1.244741106 | H144: 0.361825026 | I144: 0.006987227648
F145: -39 | G145: -1.248626414 | H145: 0.3424859813 | I145: 0.004529526672
F146: -38 | G146: -1.25 | H146: 0.3237466251 | I146: 0.002580315552
F147: -37 | G147: -1.249050193 | H147: 0.3056451194 | I147: 0.001161232156
F148: -36 | G148: -1.246297089 | H148: 0.2882196262 | I148: 0.0002939143501
F149: -35 | G149: -1.241885167 | H149: 0.2715083074 | I149: -4.996003611e-16
F150: -34 | G150: -1.235958904 | H150: 0.255549325 | I150: 0
F151: -33 | G151: -1.228662778 | H151: 0.2403808411 | I151: 0
F152: -32 | G152: -1.220141267 | H152: 0.2260410177 | I152: 0
F153: -31 | G153: -1.210538848 | H153: 0.2125680166 | I153: 0
F154: -30 | G154: -1.2 | H154: 0.2 | I154: 0
F155: -29 | G155: -1.187350176 | H155: 0.1877810337 | I155: 0
F156: -28 | G156: -1.171404586 | H156: 0.1753842272 | I156: 0
F157: -27 | G157: -1.152292337 | H157: 0.1628913075 | I157: 0
F158: -26 | G158: -1.130142539 | H158: 0.1503840019 | I158: 0
F159: -25 | G159: -1.105084299 | H159: 0.1379440376 | I159: 0
F160: -24 | G160: -1.077246728 | H160: 0.1256531416 | I160: 0
F161: -23 | G161: -1.046758932 | H161: 0.1135930413 | I161: 0
F162: -22 | G162: -1.013750022 | H162: 0.1018454637 | I162: 0
F163: -21 | G163: -0.978349105 | H163: 0.09049213605 | I163: 0
F164: -20 | G164: -0.94068529 | H164: 0.07961478553 | I164: 0
F165: =F164+0.1 -> -19.9 | G165: -0.9367994198 | H165: 0.07855637571 | I165: 0
F166: =F165+0.1 -> -19.8 | G166: -0.9328923409 | H166: 0.07750362467 | I166: 0
F167: -19.7 | G167: -0.9289641822 | H167: 0.07645661412 | I167: 0
F168: -19.6 | G168: -0.925015073 | H168: 0.07541542579 | I168: 0
F169: -19.5 | G169: -0.9210451423 | H169: 0.07438014142 | I169: 0
F170: -19.4 | G170: -0.9170545193 | H170: 0.07335084273 | I170: 0
F171: -19.3 | G171: -0.913043333 | H171: 0.07232761144 | I171: 0
F172: -19.2 | G172: -0.9090117126 | H172: 0.07131052929 | I172: 0
F173: -19.1 | G173: -0.9049597872 | H173: 0.07029967799 | I173: 0
F174: -19 | G174: -0.9008876858 | H174: 0.06929513929 | I174: 0
F175: -18.9 | G175: -0.8967955377 | H175: 0.0682969949 | I175: 0
F176: -18.8 | G176: -0.8926834718 | H176: 0.06730532655 | I176: 0
F177: -18.7 | G177: -0.8885516174 | H177: 0.06632021597 | I177: 0
F178: -18.6 | G178: -0.8844001034 | H178: 0.06534174488 | I178: 0
F179: -18.5 | G179: -0.8802290591 | H179: 0.06436999502 | I179: 0
F180: -18.4 | G180: -0.8760386136 | H180: 0.06340504811 | I180: 0
F181: -18.3 | G181: -0.8718288959 | H181: 0.06244698588 | I181: 0
F182: -18.2 | G182: -0.8676000351 | H182: 0.06149589005 | I182: 0
F183: -18.1 | G183: -0.8633521604 | H183: 0.06055184235 | I183: 0
F184: -18 | G184: -0.8590854009 | H184: 0.05961492451 | I184: 0
F185: -17.9 | G185: -0.8547998856 | H185: 0.05868521826 | I185: 0
F186: -17.8 | G186: -0.8504957438 | H186: 0.05776280533 | I186: 0
F187: -17.7 | G187: -0.8461731044 | H187: 0.05684776743 | I187: 0
F188: -17.6 | G188: -0.8418320967 | H188: 0.0559401863 | I188: 0
F189: -17.5 | G189: -0.8374728496 | H189: =cubspline(3,F189,$A$18:$A$28,$B$18:$B$28) -> 0.05504014367 | I189: =cubspline(3,F189,$A$34:$A$44,$B$34:$B$44) -> 0
F190: -17.4 | G190: -0.8330954924 | H190: 0.05414772126 | I190: 0
F191: -17.3 | G191: -0.8287001541 | H191: 0.0532630008 | I191: 0
F192: -17.2 | G192: -0.8242869639 | H192: 0.05238606401 | I192: 0
F193: -17.1 | G193: -0.8198560507 | H193: 0.05151699263 | I193: 0
F194: -17 | G194: -0.8154075439 | H194: 0.05065586838 | I194: 0
F195: -16.9 | G195: -0.8109415724 | H195: 0.04980277299 | I195: 0
F196: -16.8 | G196: -0.8064582654 | H196: 0.04895778818 | I196: 0
F197: -16.7 | G197: =cubspline(3,F197,$A$4:$A$14,$B$4:$B$14) -> -0.801957752 | H197: 0.04812099569 | I197: 0
F198: -16.6 | G198: -0.7974401613 | H198: 0.04729247723 | I198: 0
F199: -16.5 | G199: -0.7929056223 | H199: 0.04647231454 | I199: 0
F200: -16.4 | G200: -0.7883542643 | H200: 0.04566058935 | I200: 0
... 524 more rows

Sheet Sheet2

Sheet Sheet3
